bitfinex/quotes_BTCUSD_20250826
["timestamp","ask_amount","ask_price","bid_price","bid_amount"]
[1756215393965,0.37411874,110310.0,110300.0,0.21994831]
[1756215394216,0.01474647,110310.0,110300.0,0.31141033]
[1756215394448,0.27872405,110340.0,110320.0,0.18129079]
[1756215394671,4.93851735,110330.0,110320.0,0.09146202]
[1756215394887,0.18129079,110320.0,110300.0,0.21994831]
[1756215395129,0.99390315,110320.0,110300.0,0.30941033]
[1756215395361,5.89110608,110310.0,110300.0,0.00014394]
[1756215395809,6.07286701,110310.0,110300.0,0.00614394]
[1756215395811,6.09682824,110310.0,110300.0,1e-08]
[1756215396029,0.18142235,110240.0,110230.0,0.0725196]
[1756215396258,0.88795975,110270.0,110240.0,0.19049346]
[1756215396481,5.27863244,110260.0,110250.0,0.00226757]
[1756215396705,5.27863244,110260.0,110250.0,0.34765508]
[1756215396706,0.34635641,110260.0,110250.0,0.34765508]
[1756215396918,0.34,110260.0,110250.0,0.34538751]
[1756215397129,0.34,110260.0,110250.0,0.29729501]
[1756215397351,0.52138944,110260.0,110250.0,0.29729501]
[1756215397568,0.34,110260.0,110250.0,0.27286791]
[1756215397786,0.52532,110270.0,110260.0,0.18137859]
[1756215398002,0.34635372,110270.0,110260.0,0.27284061]
[1756215398226,0.34635372,110270.0,110260.0,0.32642425]
[1756215398872,1.14028257,110270.0,110250.0,0.18140589]
[1756215399086,1.14028257,110270.0,110250.0,0.27286791]
[1756215399301,1.14028257,110270.0,110260.0,0.18138944]
[1756215399538,1.32540257,110270.0,110260.0,0.18138944]
[1756215399761,0.34635372,110270.0,110260.0,0.27285146]
[1756215399982,0.34,110270.0,110260.0,0.27285146]
[1756215400212,0.34,110270.0,110260.0,0.3192772]
[1756215400648,0.34,110270.0,110260.0,0.5042772]
[1756215400861,0.18488,110280.0,110270.0,0.18135906]
[1756215401080,0.18488,110280.0,110270.0,0.30273179]
[1756215401081,0.34635561,110280.0,110270.0,0.30273179]
[1756215401300,0.36622184,110290.0,110270.0,0.30273179]
[1756215401541,0.36622184,110290.0,110260.0,0.19145891]
[1756215401542,5.5511554,110280.0,110260.0,0.18238944]
[1756215401756,0.80026722,110280.0,110270.0,0.18137299]
[1756215401971,0.80026722,110280.0,110270.0,0.22689544]
[1756215402237,0.9787777,110290.0,110280.0,0.18135654]
[1756215402451,0.53961273,110290.0,110280.0,0.18135654]
[1756215402880,0.53961392,110290.0,110280.0,0.18135654]
[1756215403096,0.01477392,110290.0,110280.0,0.27281856]
[1756215403322,0.18488,110300.0,110290.0,0.18132788]
[1756215403596,0.1813401,110290.0,110280.0,0.09146202]
[1756215403831,0.18135654,110280.0,110270.0,0.1815169]
[1756215404058,0.18135654,110280.0,110270.0,0.27297892]
[1756215404297,1.3186324,110280.0,110270.0,0.00014391]
[1756215404519,1.33341046,110280.0,110270.0,0.00014391]
[1756215404740,6.21029468,110280.0,110270.0,0.00014391]
[1756215404950,6.17980776,110280.0,110270.0,0.00014391]
[1756215405463,6.27126978,110280.0,110270.0,0.00014391]
[1756215405688,6.32784007,110280.0,110270.0,1e-08]
[1756215405898,6.42736683,110280.0,110270.0,1e-08]
[1756215406328,6.36271507,110280.0,110270.0,1e-08]
[1756215406546,6.08654978,110280.0,110270.0,1e-08]
[1756215406750,6.27106978,110280.0,110270.0,1e-08]
[1756215406955,6.27706978,110280.0,110270.0,1e-08]
[1756215407386,6.31947583,110280.0,110270.0,1e-08]
[1756215407805,1.74651761,110250.0,110240.0,1e-08]
[1756215408026,2.87721662,110250.0,110240.0,1e-08]
[1756215408238,6.45772584,110250.0,110240.0,1e-08]
[1756215408449,6.18204055,110250.0,110240.0,1e-08]
[1756215408690,6.17483014,110250.0,110240.0,1e-08]
[1756215408906,6.40704574,110250.0,110240.0,1e-08]
[1756215409142,0.18155698,110160.0,110140.0,0.25410656]
[1756215409357,0.18155698,110160.0,110150.0,0.09146202]
[1756215409590,0.52157058,110150.0,110140.0,4.784e-05]
[1756215409819,6.14592944,110150.0,110140.0,1e-08]
[1756215410060,6.26299592,110150.0,110140.0,1e-08]
[1756215410276,6.28711408,110150.0,110140.0,1e-08]
[1756215410504,6.85473548,110150.0,110140.0,1e-08]
[1756215410722,1.1341924,110110.0,110100.0,4e-05]
[1756215410929,6.26343861,110110.0,110100.0,4e-05]
[1756215411159,5.86895055,110110.0,110100.0,4e-05]
[1756215411388,6.03130213,110110.0,110100.0,0.00051795]
[1756215411600,6.2101659,110110.0,110100.0,0.00051795]
[1756215411810,6.30161119,110110.0,110100.0,0.00051795]
[1756215412221,5.43607565,110110.0,110100.0,0.00051795]
[1756215412429,6.22757443,110110.0,110100.0,0.00051795]
[1756215413048,5.42977857,110110.0,110100.0,0.00051795]
[1756215413254,6.22753443,110110.0,110100.0,0.00051795]
[1756215413492,6.22853443,110110.0,110100.0,0.00151795]
[1756215413746,6.31997972,110110.0,110100.0,1e-08]
[1756215414216,6.22921443,110110.0,110100.0,1e-08]
[1756215415791,6.22925443,110110.0,110100.0,1e-08]
[1756215416199,5.21288807,110110.0,110100.0,1e-08]
[1756215416438,5.82544393,110110.0,110100.0,1e-08]
[1756215416668,6.16544393,110110.0,110100.0,1e-08]
[1756215416872,5.21288807,110110.0,110100.0,1e-08]
[1756215417079,5.82544393,110110.0,110100.0,1e-08]
[1756215417288,6.19257185,110110.0,110100.0,1e-08]
[1756215417496,5.97960393,110110.0,110100.0,1e-08]
[1756215417703,5.97960393,110110.0,110100.0,0.18165305]
[1756215417704,5.27987954,110110.0,110100.0,0.18165305]
[1756215417953,0.1858,110110.0,110100.0,0.18165304]
[1756215418171,0.36743654,110110.0,110100.0,0.18165304]
[1756215418389,0.18584,110110.0,110100.0,0.27711506]
[1756215418607,1.06685599,110110.0,110100.0,0.004]
[1756215418828,0.34,110100.0,110090.0,0.18166908]
[1756215419086,0.00047798,110110.0,110100.0,0.18165304]
[1756215419305,0.18747798,110110.0,110100.0,0.18765304]
[1756215419513,1.14003384,110110.0,110100.0,0.18765304]
[1756215419728,0.34147798,110110.0,110100.0,0.32519347]
[1756215419935,1.32179038,110110.0,110100.0,0.18765304]
[1756215420154,0.34147798,110110.0,110100.0,0.18765304]
[1756215420365,0.18763798,110110.0,110100.0,0.27911506]
[1756215420823,0.80019384,110110.0,110100.0,0.27911506]
[1756215421048,0.00147798,110110.0,110100.0,0.27911506]
[1756215421267,0.00147798,110110.0,110100.0,0.32519347]
[1756215421494,0.00047798,110110.0,110100.0,0.31919347]
[1756215421740,0.00047798,110110.0,110100.0,0.27311506]
[1756215421954,0.00147798,110110.0,110100.0,0.28011506]
[1756215422375,0.00047798,110110.0,110100.0,0.27311506]
[1756215422808,0.00047798,110110.0,110100.0,1.08567092]
[1756215423082,1e-08,110110.0,110100.0,1.68567092]
[1756215423295,1e-08,110110.0,110100.0,1.87215092]
[1756215423770,1e-08,110110.0,110100.0,1.07311506]
[1756215423999,1e-08,110110.0,110100.0,1.87207092]
[1756215424235,0.25405802,110170.0,110100.0,1.87207092]
[1756215424236,0.0725196,110170.0,110160.0,0.1815541]
[1756215424462,0.0725196,110170.0,110160.0,0.30932859]
[1756215424889,0.86661308,110170.0,110160.0,0.21786657]
[1756215425103,0.86661308,110170.0,110160.0,0.1815541]
[1756215425321,0.86661308,110170.0,110150.0,0.18157058]
[1756215425521,0.86661308,110170.0,110150.0,0.2730326]
[1756215425730,0.68507546,110170.0,110160.0,0.1815541]
[1756215425974,0.1815541,110160.0,110150.0,0.2730326]
[1756215426213,0.18157058,110150.0,110140.0,0.18157058]
[1756215426466,0.18157058,110150.0,110140.0,4.778e-05]
[1756215426467,0.79412644,110150.0,110140.0,4.778e-05]
[1756215426678,0.61255586,110150.0,110140.0,0.18163485]
[1756215426930,0.1815541,110160.0,110150.0,0.18157058]
[1756215427143,0.7079141,110160.0,110140.0,0.27309687]
[1756215427361,0.001,110170.0,110160.0,0.1815541]
[1756215427572,0.001,110170.0,110160.0,0.27301612]
[1756215427778,0.001,110170.0,110160.0,1.22557198]
[1756215428002,0.001,110170.0,110160.0,0.27301612]
[1756215428233,0.79406053,110190.0,110160.0,0.28209382]
[1756215428444,0.61255586,110180.0,110170.0,0.27299559]
[1756215428659,0.61255586,110190.0,110180.0,0.18151]
[1756215428869,0.61255586,110190.0,110160.0,0.02895839]
[1756215428870,0.18152114,110180.0,110160.0,0.02895839]
[1756215429088,0.61255586,110170.0,110160.0,0.30197398]
[1756215429528,0.794077,110180.0,110170.0,0.18053762]
[1756215429745,1.320557,110180.0,110160.0,0.31197398]
[1756215429964,0.61255586,110170.0,110160.0,0.27306337]
[1756215430662,0.59236114,110180.0,110160.0,0.19060188]
[1756215430890,1.39120273,110180.0,110170.0,0.18153762]
[1756215431099,1.32136273,110180.0,110170.0,0.18153762]
[1756215431311,0.18153762,110170.0,110160.0,0.00904778]
[1756215431532,0.001,110180.0,110160.0,0.28660274]
[1756215431750,0.001,110180.0,110170.0,0.27526886]
[1756215431973,0.18644,110210.0,110200.0,0.18148099]
[1756215432218,0.0725196,110230.0,110220.0,0.18145527]
[1756215432434,0.25135455,110260.0,110240.0,0.18142235]
[1756215432661,4.757243,110250.0,110240.0,0.20903362]
[1756215432873,4.757243,110250.0,110240.0,0.29949564]
[1756215433095,0.37727107,110270.0,110250.0,0.18139705]
[1756215433313,5.09772187,110260.0,110250.0,0.18139705]
[1756215433540,0.00047887,110260.0,110250.0,0.22912223]
[1756215433746,0.00047887,110260.0,110250.0,0.32058425]
[1756215434167,0.00047887,110260.0,110250.0,0.09146202]
[1756215434380,0.79442417,110260.0,110240.0,0.18141994]
[1756215434653,5.55120475,110250.0,110210.0,0.18147173]
[1756215434884,0.79401113,110220.0,110210.0,0.09146202]
[1756215435092,0.18147173,110210.0,110200.0,0.003]
[1756215435304,1.13402759,110210.0,110200.0,0.003]
[1756215435965,5.98273261,110210.0,110200.0,0.003]
[1756215436203,1.13402759,110210.0,110200.0,0.003]
[1756215436424,0.18150467,110190.0,110180.0,0.18151897]
[1756215436634,0.1814882,110200.0,110190.0,0.18150467]
[1756215436847,0.18150467,110190.0,110180.0,0.14750968]
[1756215437058,0.18150467,110190.0,110180.0,0.32903082]
[1756215437277,0.71842531,110210.0,110190.0,0.18150467]
[1756215437491,4.757243,110200.0,110190.0,0.18150467]
[1756215437715,4.757243,110200.0,110190.0,0.19984124]
[1756215437945,0.52784,110210.0,110200.0,0.1814882]
[1756215438179,0.34,110210.0,110200.0,0.1814882]
[1756215438462,0.1814882,110200.0,110190.0,0.20609657]
[1756215438690,0.1814882,110200.0,110190.0,0.01833657]
[1756215438920,0.1814882,110200.0,110180.0,0.19064497]
[1756215439159,0.52147173,110210.0,110200.0,0.1814882]
[1756215439400,0.18150467,110190.0,110180.0,4.778e-05]
[1756215439625,0.18150467,110190.0,110180.0,0.18156892]
[1756215439855,0.34,110200.0,110190.0,0.18150467]
[1756215440106,0.52772,110210.0,110200.0,0.1814882]
[1756215440314,0.34,110210.0,110200.0,0.1814882]
[1756215440523,0.34,110210.0,110200.0,0.1804882]
[1756215440733,0.34,110210.0,110200.0,0.1827568]
[1756215440983,0.34,110210.0,110200.0,0.20200262]
[1756215441213,0.52147173,110210.0,110200.0,0.19973402]
[1756215441445,0.1814882,110200.0,110190.0,0.27296258]
[1756215441698,0.341,110210.0,110200.0,0.1904882]
[1756215442397,0.52247173,110210.0,110200.0,0.1904882]
[1756215442636,0.18150467,110190.0,110180.0,4.778e-05]
[1756215442898,0.18150467,110190.0,110180.0,0.18383793]
[1756215442899,0.34,110190.0,110180.0,0.18383793]
[1756215443122,0.001,110200.0,110190.0,0.18150467]
[1756215443346,0.001,110200.0,110190.0,0.46060669]
[1756215443583,0.001,110200.0,110190.0,1.12040669]
[1756215443812,0.26304164,110280.0,110260.0,0.18138618]
[1756215444038,4.93861599,110270.0,110260.0,0.01813862]
[1756215444252,0.18139084,110260.0,110240.0,0.36957234]
[1756215444683,0.52139084,110260.0,110250.0,0.18140589]
[1756215444907,0.52139084,110260.0,110250.0,0.18040589]
[1756215445121,0.52186831,110260.0,110240.0,0.36957234]
[1756215445348,0.71006831,110260.0,110240.0,0.24439598]
[1756215445565,5.27864889,110250.0,110240.0,0.005]
[1756215445791,0.34,110250.0,110240.0,0.18642235]
[1756215446009,0.52140589,110250.0,110230.0,0.18139216]
[1756215446260,0.34,110250.0,110240.0,0.18142235]
[1756215446475,0.18142235,110240.0,110220.0,0.37860849]
[1756215446706,0.18142235,110240.0,110230.0,0.1814388]
[1756215446913,0.36942235,110240.0,110230.0,0.1814388]
[1756215447332,0.70936589,110250.0,110240.0,0.18142235]
[1756215447556,5.48332443,110250.0,110240.0,0.21770847]
[1756215447765,5.46660889,110250.0,110230.0,0.1814388]
[1756215447988,4.93866535,110240.0,110220.0,0.46995051]
[1756215448209,0.81976921,110240.0,110220.0,0.18145527]
[1756215448416,0.34,110240.0,110230.0,0.1814388]
[1756215448834,0.34,110240.0,110230.0,0.21772821]
[1756215449051,0.00047887,110260.0,110250.0,0.18140589]
[1756215449267,0.50047887,110260.0,110240.0,0.36924789]
[1756215449476,0.18240589,110250.0,110240.0,0.46072437]
[1756215449694,0.00047887,110260.0,110250.0,0.18140589]
[1756215449906,0.00047887,110260.0,110240.0,0.18784]
[1756215449907,0.18140589,110250.0,110240.0,0.18784]
[1756215450161,0.18142235,110240.0,110220.0,0.18145527]
[1756215450375,5.76483575,110250.0,110220.0,0.18145527]
[1756215450376,1.00759275,110250.0,110230.0,0.1814388]
[1756215450600,0.53815682,110250.0,110240.0,0.18142235]
[1756215450807,0.53815682,110250.0,110230.0,0.1814388]
[1756215451018,0.18142235,110240.0,110220.0,0.46983005]
[1756215451232,0.52140589,110250.0,110240.0,0.18142235]
[1756215451448,0.18142235,110240.0,110230.0,0.003]
[1756215451655,0.18142235,110240.0,110230.0,0.1844388]
[1756215451899,0.52140589,110250.0,110240.0,0.18142235]
[1756215452114,0.35675749,110250.0,110240.0,0.36906235]
[1756215452324,0.00047887,110260.0,110250.0,0.18140589]
[1756215452534,0.18140589,110250.0,110240.0,0.52472069]
[1756215452768,0.18186831,110260.0,110240.0,0.52472069]
[1756215453003,0.18186831,110260.0,110250.0,0.18140589]
[1756215453222,0.52186831,110260.0,110240.0,0.52472069]
[1756215453430,0.52186831,110260.0,110250.0,0.18140589]
[1756215453643,0.52186831,110260.0,110250.0,0.19154602]
[1756215453866,0.52186831,110260.0,110250.0,0.01014013]
[1756215454350,0.34047887,110260.0,110250.0,0.19154602]
[1756215454573,0.00047887,110260.0,110250.0,0.28300804]
[1756215455209,0.00047887,110260.0,110250.0,0.28400804]
[1756215455443,0.00047887,110260.0,110250.0,0.47148804]
[1756215455668,0.00047887,110260.0,110250.0,0.47048804]
[1756215455889,0.00047887,110260.0,110250.0,0.28300804]
[1756215456107,0.00047887,110260.0,110250.0,0.46026791]
[1756215456329,0.18186831,110260.0,110250.0,0.46518791]
[1756215456543,0.18140589,110250.0,110240.0,0.25708]
[1756215456760,0.18186831,110260.0,110250.0,0.18140589]
[1756215456976,0.18186831,110260.0,110250.0,0.006]
[1756215457415,0.18186831,110260.0,110250.0,0.18740589]
[1756215457642,0.79430929,110260.0,110250.0,0.006]
[1756215457877,5.89788741,110260.0,110250.0,0.006]
[1756215458103,5.94239355,110260.0,110250.0,0.006]
[1756215458535,0.18142235,110240.0,110220.0,0.26032803]
[1756215458757,0.18142235,110240.0,110230.0,0.1814388]
[1756215458970,0.79386333,110240.0,110230.0,0.1814388]
[1756215459422,0.70830056,110250.0,110240.0,0.18142235]
[1756215459661,0.5445367,110250.0,110240.0,0.18142235]
[1756215460088,1.14018674,110250.0,110230.0,0.1814388]
[1756215460314,0.18142235,110240.0,110230.0,0.23476169]
[1756215460524,0.18142235,110240.0,110230.0,0.1814388]
[1756215461168,0.52140589,110250.0,110230.0,0.1814388]
[1756215461375,1.18479686,110250.0,110230.0,0.1814388]
[1756215461586,0.18142235,110240.0,110230.0,0.1814388]
[1756215462035,0.001,110240.0,110230.0,0.1814388]
[1756215462268,0.34,110250.0,110240.0,0.18142235]
[1756215462474,0.70822831,110260.0,110250.0,0.18140589]
[1756215462688,5.51643083,110260.0,110250.0,0.18140589]
[1756215462888,6.12887181,110260.0,110250.0,0.18140589]
[1756215463297,0.18440589,110250.0,110240.0,0.36778235]
[1756215463504,5.57725863,110250.0,110230.0,0.19051074]
[1756215463684,0.84480735,110250.0,110240.0,0.18142235]
[1756215464096,0.21298486,110250.0,110240.0,0.18142235]
[1756215464328,0.20457465,110250.0,110240.0,0.18142235]
[1756215464458,0.02316876,110250.0,110240.0,0.18142235]
[1756215464660,0.00634856,110250.0,110240.0,0.18142235]
[1756215464866,0.34047887,110260.0,110250.0,0.18140589]
[1756215465070,0.37206389,110260.0,110250.0,0.18140589]
[1756215465287,0.03606389,110260.0,110250.0,0.45866791]
[1756215465495,0.00047887,110260.0,110250.0,0.45866791]
[1756215465706,0.00047887,110260.0,110250.0,0.52267694]
[1756215465970,0.00047887,110260.0,110250.0,1.27439752]
[1756215466176,0.00047887,110260.0,110250.0,0.40363694]
[1756215466378,0.00047887,110260.0,110250.0,0.58931694]
[1756215466799,0.00147887,110260.0,110250.0,0.58931694]
[1756215467218,0.00147887,110260.0,110250.0,0.58919694]
[1756215467428,0.00147887,110260.0,110250.0,0.40363694]
[1756215467652,0.00147887,110260.0,110250.0,0.52522791]
[1756215467894,0.00147887,110260.0,110250.0,0.52514791]
[1756215469211,0.79430929,110260.0,110250.0,0.09146202]
[1756215469496,0.18140589,110250.0,110230.0,0.26027074]
[1756215469810,0.18142235,110240.0,110220.0,0.19052803]
[1756215470025,0.1814388,110230.0,110220.0,0.3270673]
[1756215470279,0.79387978,110230.0,110190.0,0.19053362]
[1756215470508,0.79387978,110230.0,110190.0,0.27292041]
[1756215470509,0.79392205,110210.0,110190.0,0.27292041]
[1756215470731,0.79392205,110210.0,110200.0,0.1814882]
[1756215470732,0.00635745,110210.0,110200.0,0.1814882]
[1756215470931,0.02318912,110210.0,110200.0,0.1814882]
[1756215471162,0.02318912,110210.0,110200.0,0.27295022]
[1756215471359,0.34,110220.0,110210.0,0.18147173]
[1756215471569,0.02319143,110220.0,110210.0,0.36667173]
[1756215471991,0.81708768,110220.0,110210.0,0.18524778]
[1756215472210,0.81708768,110220.0,110210.0,0.18151951]
[1756215472424,0.0063573,110220.0,110210.0,0.18151951]
[1756215472624,1.30025355,110220.0,110210.0,4.778e-05]
[1756215472780,4.94505557,110220.0,110210.0,4.778e-05]
[1756215472999,0.80125355,110220.0,110210.0,4.778e-05]
[1756215473487,0.80125355,110220.0,110210.0,0.18151951]
[1756215473750,0.80125355,110220.0,110210.0,4.778e-05]
[1756215473957,0.61979828,110220.0,110210.0,0.18151951]
[1756215474165,0.0073573,110220.0,110210.0,0.21782028]
[1756215474375,0.0073573,110220.0,110210.0,0.40298028]
[1756215474780,0.18881257,110220.0,110210.0,0.36667951]
[1756215475002,0.0073573,110220.0,110210.0,0.36667951]
[1756215475766,0.80125355,110220.0,110210.0,4.778e-05]
[1756215475915,0.61979828,110220.0,110210.0,0.18151951]
[1756215476117,0.80125355,110220.0,110210.0,0.23633628]
[1756215476325,0.0073573,110220.0,110210.0,0.23633628]
[1756215476524,0.18881257,110220.0,110210.0,0.23633628]
[1756215476721,0.18881257,110220.0,110210.0,4.778e-05]
[1756215476722,0.80125355,110220.0,110210.0,4.778e-05]
[1756215477664,0.20819803,110220.0,110210.0,4.778e-05]
[1756215477864,1.00511901,110220.0,110210.0,4.778e-05]
[1756215478020,0.82063901,110220.0,110210.0,0.18151951]
[1756215478216,1.02194591,110220.0,110210.0,4.778e-05]
[1756215478379,1.02194254,110220.0,110210.0,4.778e-05]
[1756215478576,1.34511901,110220.0,110210.0,4.778e-05]
[1756215478802,1.36193895,110220.0,110210.0,4.778e-05]
[1756215479009,1.34511536,110220.0,110210.0,4.778e-05]
[1756215479205,0.74949785,110220.0,110210.0,0.18151951]
[1756215479417,0.71328892,110220.0,110210.0,0.21782007]
[1756215479622,1.3257299,110220.0,110210.0,4.778e-05]
[1756215480033,6.21063086,110220.0,110210.0,4.778e-05]
[1756215480237,6.21904009,110220.0,110210.0,4.778e-05]
[1756215480649,6.24328872,110220.0,110210.0,4.778e-05]
[1756215480856,6.05880872,110220.0,110210.0,4.778e-05]
[1756215481065,6.21856009,110220.0,110210.0,4.778e-05]
[1756215481567,6.33248844,110220.0,110210.0,4.778e-05]
[1756215481771,6.24280872,110220.0,110210.0,4.778e-05]
[1756215481972,6.71653186,110220.0,110210.0,4.778e-05]
[1756215482117,6.50828323,110220.0,110210.0,4.778e-05]
[1756215482321,6.71653979,110220.0,110210.0,4.778e-05]
[1756215482520,6.10409881,110220.0,110210.0,4.778e-05]
[1756215482740,5.88803567,110220.0,110210.0,4.778e-05]
[1756215482919,6.63527173,110220.0,110210.0,4.778e-05]
[1756215483437,6.75191867,110220.0,110210.0,1e-08]
[1756215483641,6.80815837,110220.0,110210.0,1e-08]
[1756215483846,6.71671308,110220.0,110210.0,1e-08]
[1756215484257,6.91571308,110220.0,110210.0,1e-08]
[1756215484482,6.71583308,110220.0,110210.0,1e-08]
[1756215484686,6.89469652,110220.0,110210.0,1e-08]
[1756215484909,6.9188794,110220.0,110210.0,1e-08]
[1756215485116,6.5344394,110220.0,110210.0,1e-08]
[1756215485329,6.50241626,110220.0,110210.0,1e-08]
[1756215485534,6.64571228,110220.0,110210.0,1e-08]
[1756215485807,6.71293965,110220.0,110210.0,1e-08]
[1756215486071,6.68669038,110220.0,110210.0,1e-08]
[1756215486329,6.64575228,110220.0,110210.0,1e-08]
[1756215486558,6.63735173,110220.0,110210.0,1e-08]
[1756215486997,6.63715173,110220.0,110210.0,1e-08]
[1756215487216,6.63707173,110220.0,110210.0,1e-08]
[1756215487435,6.27769492,110220.0,110210.0,1e-08]
[1756215487878,6.33091143,110220.0,110210.0,1e-08]
[1756215488322,6.4529919,110220.0,110210.0,1e-08]
[1756215488531,6.61760168,110220.0,110210.0,1e-08]
[1756215488815,6.43364168,110220.0,110210.0,1e-08]
[1756215489011,5.57353868,110220.0,110210.0,1e-08]
[1756215489258,6.52597966,110220.0,110210.0,1e-08]
[1756215489480,6.07793925,110220.0,110210.0,1e-08]
[1756215489961,6.17574003,110220.0,110210.0,1e-08]
[1756215490629,6.63679422,110220.0,110210.0,1e-08]
[1756215491048,6.63045546,110220.0,110210.0,1e-08]
[1756215491284,6.52593859,110220.0,110210.0,1e-08]
[1756215491497,6.17959925,110220.0,110210.0,1e-08]
[1756215491722,6.61106127,110220.0,110210.0,1e-08]
[1756215491926,6.61739968,110220.0,110210.0,1e-08]
[1756215492134,5.72339827,110220.0,110210.0,0.18147174]
[1756215492310,5.90719827,110220.0,110210.0,0.18147174]
[1756215492540,6.61110127,110220.0,110210.0,1e-08]
[1756215492810,6.65226014,110220.0,110210.0,1e-08]
[1756215493227,6.67161693,110220.0,110210.0,1e-08]
[1756215493631,6.6367968,110220.0,110210.0,1e-08]
[1756215495311,6.64520302,110220.0,110210.0,1e-08]
[1756215496200,6.68619778,110220.0,110210.0,1e-08]
[1756215496657,6.71822092,110220.0,110210.0,1e-08]
[1756215496888,6.68555778,110220.0,110210.0,1e-08]
[1756215497543,6.71758092,110220.0,110210.0,1e-08]
[1756215497757,6.71765096,110220.0,110210.0,1e-08]
[1756215498241,6.77707382,110220.0,110210.0,1e-08]
[1756215498453,6.76142013,110220.0,110210.0,1e-08]
[1756215498678,6.77743171,110220.0,110210.0,1e-08]
[1756215498903,7.0035156,110220.0,110210.0,1e-08]
[1756215499137,0.1815541,110160.0,110150.0,0.25409018]
[1756215499348,0.97675508,110160.0,110150.0,0.07266515]
[1756215499563,0.98311515,110160.0,110150.0,0.07266515]
[1756215499991,0.00636007,110160.0,110150.0,0.27966085]
[1756215500203,0.18908007,110160.0,110150.0,0.37112287]
[1756215500430,0.00636007,110160.0,110150.0,0.37112287]
[1756215500646,0.79399508,110160.0,110150.0,0.27966085]
[1756215500859,0.00636723,110160.0,110150.0,0.26023573]
[1756215501076,0.00636723,110160.0,110150.0,0.35169775]
[1756215501281,0.00636723,110160.0,110150.0,0.34569775]
[1756215501491,0.1832,110170.0,110160.0,0.18154087]
[1756215501698,0.1815541,110160.0,110150.0,0.00214555]
[1756215501911,5.55760327,110160.0,110150.0,0.00214555]
[1756215502119,0.61880617,110160.0,110150.0,0.18371613]
[1756215502327,0.37107929,110160.0,110150.0,0.00214555]
[1756215502528,0.37107929,110160.0,110150.0,0.18371613]
[1756215502952,0.00636519,110160.0,110150.0,0.18371613]
[1756215503159,0.18948519,110160.0,110150.0,0.18371613]
[1756215503573,0.98348027,110160.0,110150.0,0.00214555]
[1756215504011,1.00291151,110160.0,110150.0,0.00214555]
[1756215504272,1.07275151,110160.0,110150.0,0.00214555]
[1756215504460,0.46031053,110160.0,110150.0,0.00214555]
[1756215504675,1.07275151,110160.0,110150.0,0.00214555]
[1756215504887,0.46031053,110160.0,110150.0,0.18371613]
[1756215505095,1.07275151,110160.0,110150.0,0.18371613]
[1756215505327,0.88963151,110160.0,110150.0,0.00214555]
[1756215505559,0.20847643,110160.0,110150.0,0.18371613]
[1756215505782,0.00636519,110160.0,110150.0,0.31170829]
[1756215506017,0.02426885,110200.0,110190.0,0.18150467]
[1756215506242,0.25129527,110220.0,110210.0,0.18147173]
[1756215506454,4.97435881,110220.0,110210.0,0.21776772]
[1756215506692,0.02579874,110220.0,110210.0,0.18147173]
[1756215506914,0.05662732,110250.0,110230.0,0.1814388]
[1756215507125,0.45279595,110250.0,110230.0,0.27290082]
[1756215507371,0.18142235,110240.0,110230.0,0.09146202]
[1756215507603,0.18142235,110240.0,110220.0,0.19051372]
[1756215507604,0.1814388,110230.0,110220.0,0.18144096]
[1756215507852,0.79386333,110240.0,110220.0,0.18144096]
[1756215508051,0.80022128,110240.0,110220.0,0.21865814]
[1756215508253,0.79386333,110240.0,110220.0,0.21865814]
[1756215508457,0.97687978,110230.0,110210.0,0.18165728]
[1756215508678,0.79389625,110220.0,110210.0,0.00018555]
[1756215508881,0.80025197,110220.0,110210.0,0.00018555]
[1756215509302,0.18145527,110220.0,110210.0,0.18165728]
[1756215509505,0.18145527,110220.0,110210.0,0.00018555]
[1756215509506,0.80025111,110220.0,110210.0,0.00018555]
[1756215509939,5.5769339,110220.0,110210.0,0.00018555]
[1756215510180,5.66839592,110220.0,110210.0,0.00018555]
[1756215511109,5.67683139,110220.0,110210.0,0.00018555]
[1756215511334,6.04113276,110220.0,110210.0,0.00018555]
[1756215511562,6.11459679,110220.0,110210.0,0.00018555]
[1756215511882,0.19062165,110180.0,110160.0,0.1815541]
[1756215512112,0.19062165,110180.0,110170.0,0.18153762]
[1756215512113,0.00635486,110180.0,110170.0,0.18153762]
[1756215512332,0.36400114,110180.0,110170.0,0.18153762]
[1756215512561,0.18883486,110180.0,110170.0,0.18153762]
[1756215512789,0.2604018,110200.0,110180.0,0.1815112]
[1756215513013,5.12106767,110190.0,110180.0,0.22696228]
[1756215513267,0.98262241,110190.0,110180.0,0.04545108]
[1756215513498,0.18153762,110170.0,110160.0,0.00414346]
[1756215513737,0.18236,110170.0,110160.0,0.27715958]
[1756215513956,0.1905799,110190.0,110170.0,0.18152645]
[1756215514172,0.37010251,110190.0,110170.0,0.18152645]
[1756215514377,0.37010251,110190.0,110170.0,0.22830282]
[1756215514585,0.18152114,110180.0,110170.0,0.04677637]
[1756215514827,0.18153762,110170.0,110160.0,0.09560548]
[1756215515067,0.9761786,110170.0,110160.0,0.00014346]
[1756215515299,1.00197372,110170.0,110160.0,0.00014346]
[1756215515565,1.07177372,110170.0,110160.0,0.00014346]
[1756215515779,0.27713274,110170.0,110160.0,0.00014346]
[1756215515985,0.45933274,110170.0,110160.0,0.18169756]
[1756215516197,0.80033641,110170.0,110160.0,0.00014346]
[1756215516410,0.98257641,110170.0,110160.0,0.00014346]
[1756215517274,0.84520192,110170.0,110160.0,0.00014346]
[1756215517482,0.84520029,110170.0,110160.0,0.00014346]
[1756215517704,0.00635618,110170.0,110160.0,0.18169756]
[1756215517917,0.36352114,110180.0,110170.0,0.18153762]
[1756215518153,0.18152114,110180.0,110170.0,0.18153762]
[1756215518379,0.18153762,110170.0,110160.0,0.27315958]
[1756215518592,0.79396212,110180.0,110170.0,0.18053762]
[1756215518826,0.18152114,110180.0,110170.0,0.18053762]
[1756215519052,0.18152114,110180.0,110160.0,0.27315958]
[1756215519284,0.18153762,110170.0,110160.0,0.09160548]
[1756215519557,0.18153762,110170.0,110160.0,0.00014346]
[1756215519996,0.18153762,110170.0,110160.0,0.18169756]
[1756215520212,0.79496212,110180.0,110170.0,0.18153762]
[1756215520635,0.36412114,110180.0,110170.0,0.18153762]
[1756215520849,0.001,110180.0,110170.0,0.18153762]
[1756215521083,0.70302467,110190.0,110180.0,0.18151303]
[1756215521305,0.18152114,110180.0,110160.0,0.2531819]
[1756215521555,0.18153762,110170.0,110150.0,0.19068879]
[1756215521772,0.9754986,110170.0,110150.0,0.28229488]
[1756215522007,0.79399508,110160.0,110150.0,0.18175434]
[1756215522234,0.1815541,110160.0,110150.0,0.18175434]
[1756215522459,0.1815541,110160.0,110150.0,0.00018407]
[1756215522460,0.79399508,110160.0,110150.0,0.00018407]
[1756215522684,0.18153762,110170.0,110150.0,0.18175465]
[1756215522912,0.7097353,110170.0,110160.0,0.1815541]
[1756215523133,0.1815541,110160.0,110150.0,0.00018407]
[1756215523392,0.79399508,110160.0,110150.0,0.00018407]